[Event "Titled Tuesday Blitz July 6 2021"]
[White "Kokoszczynski, Jan"]
[Black "Arabidze, Meri"]
[WhiteFideId "1174460"]
[BlackFideId "13604040"]
[WhiteElo "2166"]
[BlackElo "2432"]
[Result "1/2-1/2"]
[Round "03"]
[TimeControl "180+1"]
[Date "2021.07.06"]
[WhiteClock "0:00:12"]
[BlackClock "0:00:10"]

1. e4 {[%clk 0:03:00]}  c5 {[%clk 0:03:00]} 2. Nf3 {[%clk 0:03:01]}  e6 {[%clk 0:03:00]} 3. d4 {[%clk 0:02:59]}  cxd4 {[%clk 0:03:01]} 4. Nxd4 {[%clk 0:02:59]}  Nc6 {[%clk 0:03:02]} 5. Nc3 {[%clk 0:02:59]}  a6 {[%clk 0:03:02]} 6. Nxc6 {[%clk 0:02:58]}  bxc6 {[%clk 0:03:03]} 7. Bd3 {[%clk 0:02:58]}  d5 {[%clk 0:03:04]} 8. O-O {[%clk 0:02:58]}  Nf6 {[%clk 0:03:04]} 9. Re1 {[%clk 0:02:54]}  Be7 {[%clk 0:03:04]} 10. e5 {[%clk 0:02:53]}  Nd7 {[%clk 0:03:04]} 11. Qg4 {[%clk 0:02:53]}  g6 {[%clk 0:03:05]} 12. Bh6 {[%clk 0:02:49]}  Qc7 {[%clk 0:03:05]} 13. Qg3 {[%clk 0:02:46]}  Bb7 {[%clk 0:03:05]} 14. b3 {[%clk 0:02:46]}  c5 {[%clk 0:03:04]} 15. Rad1 {[%clk 0:02:41]}  Bf8 {[%clk 0:03:04]} 16. Bxf8 {[%clk 0:02:18]}  Kxf8 {[%clk 0:03:05]} 17. h4 {[%clk 0:02:19]}  Rg8 {[%clk 0:02:53]} 18. Na4 {[%clk 0:01:52]}  h6 {[%clk 0:02:48]} 19. c4 {[%clk 0:01:45]}  d4 {[%clk 0:02:48]} 20. Be4 {[%clk 0:01:36]}  g5 {[%clk 0:02:42]} 21. h5 {[%clk 0:01:32]}  a5 {[%clk 0:02:22]} 22. Bxb7 {[%clk 0:01:16]}  Qxb7 {[%clk 0:02:23]} 23. Rd3 {[%clk 0:01:16]}  g4 {[%clk 0:02:22]} 24. Qf4 {[%clk 0:01:10]}  Rg5 {[%clk 0:02:22]} 25. Rg3 {[%clk 0:01:10]}  Ke7 {[%clk 0:02:13]} 26. Nb2 {[%clk 0:00:51]}  Rag8 {[%clk 0:02:09]} 27. Nd3 {[%clk 0:00:50]}  Rxh5 {[%clk 0:02:09]} 28. Rxg4 {[%clk 0:00:39]}  Rhg5 {[%clk 0:01:50]} 29. Rxg5 {[%clk 0:00:38]}  Rxg5 {[%clk 0:01:50]} 30. f3 {[%clk 0:00:39]}  Qa8 {[%clk 0:01:44]} 31. Kf2 {[%clk 0:00:24]}  Qg8 {[%clk 0:01:42]} 32. g3 {[%clk 0:00:20]}  Qg6 {[%clk 0:01:42]} 33. Rd1 {[%clk 0:00:18]}  Qh5 {[%clk 0:01:29]} 34. g4 {[%clk 0:00:10]}  Qh3 {[%clk 0:01:16]} 35. Rg1 {[%clk 0:00:08]}  Rg6 {[%clk 0:01:08]} 36. Ke2 {[%clk 0:00:07]}  h5 {[%clk 0:01:06]} 37. g5 {[%clk 0:00:06]}  h4 {[%clk 0:00:47]} 38. Kd2 {[%clk 0:00:06]}  Rg8 {[%clk 0:00:29]} 39. Nf2 {[%clk 0:00:06]}  Qf5 {[%clk 0:00:28]} 40. Qxf5 {[%clk 0:00:06]}  exf5 {[%clk 0:00:29]} 41. f4 {[%clk 0:00:07]}  Rh8 {[%clk 0:00:29]} 42. Ke2 {[%clk 0:00:06]}  h3 {[%clk 0:00:28]} 43. Rh1 {[%clk 0:00:06]}  h2 {[%clk 0:00:29]} 44. Kf3 {[%clk 0:00:07]}  Nf8 {[%clk 0:00:29]} 45. Kg3 {[%clk 0:00:04]}  Ne6 {[%clk 0:00:30]} 46. Rxh2 {[%clk 0:00:04]}  Rxh2 {[%clk 0:00:29]} 47. Kxh2 {[%clk 0:00:05]}  Nxf4 {[%clk 0:00:30]} 48. Kg3 {[%clk 0:00:05]}  Ne2+ {[%clk 0:00:30]} 49. Kf3 {[%clk 0:00:06]}  Nc3 {[%clk 0:00:31]} 50. Kf4 {[%clk 0:00:06]}  Nxa2 {[%clk 0:00:30]} 51. Nd3 {[%clk 0:00:06]}  Nb4 {[%clk 0:00:28]} 52. Nxc5 {[%clk 0:00:06]}  d3 {[%clk 0:00:26]} 53. Ke3 {[%clk 0:00:07]}  f4+ {[%clk 0:00:26]} 54. Kd2 {[%clk 0:00:07]}  f3 {[%clk 0:00:25]} 55. Nxd3 {[%clk 0:00:07]}  Nc6 {[%clk 0:00:19]} 56. Ke3 {[%clk 0:00:07]}  Ke6 {[%clk 0:00:19]} 57. Kxf3 {[%clk 0:00:07]}  Nd4+ {[%clk 0:00:19]} 58. Ke4 {[%clk 0:00:08]}  Nxb3 {[%clk 0:00:20]} 59. Nf4+ {[%clk 0:00:08]}  Kd7 {[%clk 0:00:19]} 60. Kf5 {[%clk 0:00:08]}  a4 {[%clk 0:00:19]} 61. Nd3 {[%clk 0:00:08]}  a3 {[%clk 0:00:19]} 62. Nb4 {[%clk 0:00:09]}  Nd4+ {[%clk 0:00:17]} 63. Kf6 {[%clk 0:00:08]}  Nc6 {[%clk 0:00:17]} 64. Na2 {[%clk 0:00:08]}  Ke8 {[%clk 0:00:17]} 65. e6 {[%clk 0:00:08]}  fxe6 {[%clk 0:00:17]} 66. Kxe6 {[%clk 0:00:09]}  Nd4+ {[%clk 0:00:14]} 67. Kd5 {[%clk 0:00:10]}  Nf3 {[%clk 0:00:13]} 68. c5 {[%clk 0:00:10]}  Nxg5 {[%clk 0:00:13]} 69. c6 {[%clk 0:00:10]}  Kd8 {[%clk 0:00:13]} 70. Kd6 {[%clk 0:00:10]}  Ne4+ {[%clk 0:00:13]} 71. Kd5 {[%clk 0:00:10]}  Nf6+ {[%clk 0:00:13]} 72. Kc5 {[%clk 0:00:10]}  Kc7 {[%clk 0:00:13]} 73. Nc3 {[%clk 0:00:11]}  Ne4+ {[%clk 0:00:10]} 74. Kb4 {[%clk 0:00:11]}  Nxc3 {[%clk 0:00:10]} 75. Kxa3 {[%clk 0:00:12]}  Nd5 {[%clk 0:00:10]} 76. Kb3 {[%clk 0:00:12]}  Kxc6 {[%clk 0:00:10]} 1/2-1/2


[Site "https://www.chess.com"]

[Event "Titled Tuesday Blitz July 6 2021"]
[White "Kotepalli, Sai Nirupama"]
[Black "Avila Pavas, Santiago"]
[WhiteFideId "5039444"]
[BlackFideId "4437128"]
[WhiteElo "2402"]
[BlackElo "2244"]
[Result "1-0"]
[Round "03"]
[TimeControl "180+1"]
[Date "2021.07.06"]
[WhiteClock "0:00:57"]
[BlackClock "0:00:20"]

1. e4 {[%clk 0:03:00]}  Nf6 {[%clk 0:02:32]} 2. d3 {[%clk 0:03:00]}  e5 {[%clk 0:02:32]} 3. Nf3 {[%clk 0:03:00]}  Nc6 {[%clk 0:02:33]} 4. g3 {[%clk 0:03:00]}  Bc5 {[%clk 0:02:33]} 5. Bg2 {[%clk 0:03:01]}  O-O {[%clk 0:02:34]} 6. O-O {[%clk 0:03:01]}  d5 {[%clk 0:02:35]} 7. exd5 {[%clk 0:03:01]}  Nxd5 {[%clk 0:02:36]} 8. Nbd2 {[%clk 0:03:01]}  f6 {[%clk 0:02:36]} 9. Nc4 {[%clk 0:03:00]}  Be6 {[%clk 0:02:33]} 10. Ne3 {[%clk 0:03:00]}  Qd7 {[%clk 0:02:33]} 11. Nxd5 {[%clk 0:02:56]}  Bxd5 {[%clk 0:02:34]} 12. Be3 {[%clk 0:02:57]}  Bb6 {[%clk 0:02:34]} 13. Bxb6 {[%clk 0:02:56]}  axb6 {[%clk 0:02:35]} 14. Nd2 {[%clk 0:02:55]}  Rad8 {[%clk 0:02:35]} 15. Nb3 {[%clk 0:02:51]}  Bxg2 {[%clk 0:02:25]} 16. Kxg2 {[%clk 0:02:50]}  Qd5+ {[%clk 0:02:26]} 17. Qf3 {[%clk 0:02:50]}  Qxf3+ {[%clk 0:02:23]} 18. Kxf3 {[%clk 0:02:51]}  Nb4 {[%clk 0:02:23]} 19. Rfc1 {[%clk 0:02:49]}  Nd5 {[%clk 0:02:11]} 20. a3 {[%clk 0:02:46]}  Rd7 {[%clk 0:02:04]} 21. Re1 {[%clk 0:02:44]}  Rfd8 {[%clk 0:01:54]} 22. Rad1 {[%clk 0:02:32]}  c5 {[%clk 0:01:40]} 23. Nd2 {[%clk 0:02:23]}  b5 {[%clk 0:01:37]} 24. Ne4 {[%clk 0:02:21]}  b6 {[%clk 0:01:38]} 25. Ke2 {[%clk 0:02:05]}  Ne7 {[%clk 0:01:06]} 26. Nc3 {[%clk 0:02:03]}  b4 {[%clk 0:01:03]} 27. axb4 {[%clk 0:02:03]}  cxb4 {[%clk 0:01:04]} 28. Ne4 {[%clk 0:01:58]}  Nc6 {[%clk 0:01:04]} 29. c3 {[%clk 0:01:56]}  bxc3 {[%clk 0:01:04]} 30. bxc3 {[%clk 0:01:57]}  Ra7 {[%clk 0:01:05]} 31. Rd2 {[%clk 0:01:55]}  Ra3 {[%clk 0:01:05]} 32. Rb1 {[%clk 0:01:55]}  f5 {[%clk 0:01:05]} 33. Ng5 {[%clk 0:01:55]}  Rxc3 {[%clk 0:01:05]} 34. Rxb6 {[%clk 0:01:54]}  Nd4+ {[%clk 0:01:05]} 35. Kf1 {[%clk 0:01:53]}  h6 {[%clk 0:01:04]} 36. Ne6 {[%clk 0:01:52]}  Nf3 {[%clk 0:01:04]} 37. Nxd8 {[%clk 0:01:49]}  Nxd2+ {[%clk 0:00:59]} 38. Ke2 {[%clk 0:01:49]}  Rc2 {[%clk 0:01:00]} 39. Kd1 {[%clk 0:01:41]}  Ra2 {[%clk 0:01:00]} 40. Rb7 {[%clk 0:01:38]}  Nf3 {[%clk 0:00:58]} 41. Ne6 {[%clk 0:01:36]}  Rxf2 {[%clk 0:00:59]} 42. Rxg7+ {[%clk 0:01:35]}  Kh8 {[%clk 0:00:59]} 43. Rf7 {[%clk 0:01:34]}  Nxh2 {[%clk 0:00:57]} 44. d4 {[%clk 0:01:23]}  e4 {[%clk 0:00:56]} 45. d5 {[%clk 0:01:23]}  e3 {[%clk 0:00:56]} 46. Nf4 {[%clk 0:01:20]}  Rd2+ {[%clk 0:00:56]} 47. Kc1 {[%clk 0:01:14]}  Nf3 {[%clk 0:00:53]} 48. Re7 {[%clk 0:01:12]}  h5 {[%clk 0:00:44]} 49. Rxe3 {[%clk 0:01:08]}  Rf2 {[%clk 0:00:45]} 50. d6 {[%clk 0:01:03]}  Nd4 {[%clk 0:00:27]} 51. d7 {[%clk 0:00:59]}  Nc6 {[%clk 0:00:20]} 52. Re6 {[%clk 0:00:57]} 1-0


[Site "https://www.chess.com"]

[Event "Titled Tuesday Blitz July 6 2021"]
[White "Kotsur, Pavel"]
[Black "Donchenko, Alexander"]
[WhiteFideId "13700278"]
[BlackFideId "24603295"]
[WhiteElo "2521"]
[BlackElo "2553"]
[Result "1/2-1/2"]
[Round "03"]
[TimeControl "180+1"]
[Date "2021.07.06"]
[WhiteClock "0:00:05"]
[BlackClock "0:00:17"]

1. e4 {[%clk 0:03:00]}  e5 {[%clk 0:03:00]} 2. Nf3 {[%clk 0:03:00]}  Nc6 {[%clk 0:03:00]} 3. d4 {[%clk 0:03:00]}  exd4 {[%clk 0:03:00]} 4. Nxd4 {[%clk 0:03:01]}  Bc5 {[%clk 0:02:59]} 5. Nb3 {[%clk 0:03:00]}  Bb6 {[%clk 0:02:59]} 6. Nc3 {[%clk 0:03:01]}  Nge7 {[%clk 0:02:58]} 7. Qe2 {[%clk 0:02:38]}  d6 {[%clk 0:02:56]} 8. Be3 {[%clk 0:02:37]}  Ng6 {[%clk 0:02:53]} 9. O-O-O {[%clk 0:02:32]}  Be6 {[%clk 0:02:51]} 10. f4 {[%clk 0:02:30]}  Bg4 {[%clk 0:02:47]} 11. Qxg4 {[%clk 0:02:27]}  Bxe3+ {[%clk 0:02:47]} 12. Kb1 {[%clk 0:02:27]}  Bxf4 {[%clk 0:02:46]} 13. h4 {[%clk 0:02:05]}  h5 {[%clk 0:02:42]} 14. Qf3 {[%clk 0:02:03]}  Be5 {[%clk 0:02:38]} 15. g3 {[%clk 0:02:02]}  Qf6 {[%clk 0:02:36]} 16. Qxf6 {[%clk 0:01:55]}  gxf6 {[%clk 0:02:32]} 17. Nd5 {[%clk 0:01:54]}  O-O-O {[%clk 0:02:32]} 18. Bh3+ {[%clk 0:01:53]}  Kb8 {[%clk 0:02:31]} 19. Rhg1 {[%clk 0:01:43]}  Nce7 {[%clk 0:02:29]} 20. Ne3 {[%clk 0:01:39]}  Rhg8 {[%clk 0:02:22]} 21. c3 {[%clk 0:01:35]}  Nf8 {[%clk 0:02:20]} 22. Nf1 {[%clk 0:01:31]}  Ne6 {[%clk 0:02:17]} 23. Nd4 {[%clk 0:01:20]}  Nc5 {[%clk 0:02:17]} 24. Re1 {[%clk 0:01:07]}  Rg7 {[%clk 0:02:12]} 25. Re3 {[%clk 0:00:52]}  Rdg8 {[%clk 0:02:09]} 26. Ne2 {[%clk 0:00:52]}  d5 {[%clk 0:01:46]} 27. exd5 {[%clk 0:00:51]}  Nxd5 {[%clk 0:01:47]} 28. Rf3 {[%clk 0:00:51]}  Ne4 {[%clk 0:01:47]} 29. Bf5 {[%clk 0:00:46]}  Nd6 {[%clk 0:01:46]} 30. Bd3 {[%clk 0:00:45]}  a5 {[%clk 0:01:32]} 31. a4 {[%clk 0:00:43]}  Nb6 {[%clk 0:01:31]} 32. b3 {[%clk 0:00:42]}  Nd5 {[%clk 0:01:30]} 33. Kc2 {[%clk 0:00:42]}  Re8 {[%clk 0:01:27]} 34. Ne3 {[%clk 0:00:36]}  Nxe3+ {[%clk 0:01:09]} 35. Rxe3 {[%clk 0:00:36]}  Reg8 {[%clk 0:01:09]} 36. Rg2 {[%clk 0:00:29]}  Rg4 {[%clk 0:01:08]} 37. Rg1 {[%clk 0:00:27]}  b6 {[%clk 0:01:08]} 38. Kd1 {[%clk 0:00:21]}  Nb7 {[%clk 0:01:04]} 39. Ke1 {[%clk 0:00:20]}  Nc5 {[%clk 0:01:03]} 40. Bc2 {[%clk 0:00:20]}  c6 {[%clk 0:00:46]} 41. Kf2 {[%clk 0:00:20]}  b5 {[%clk 0:00:46]} 42. axb5 {[%clk 0:00:19]}  cxb5 {[%clk 0:00:47]} 43. Ra1 {[%clk 0:00:18]}  a4 {[%clk 0:00:45]} 44. bxa4 {[%clk 0:00:17]}  bxa4 {[%clk 0:00:45]} 45. Rb1+ {[%clk 0:00:17]}  Kc7 {[%clk 0:00:45]} 46. Rb5 {[%clk 0:00:14]}  Kc6 {[%clk 0:00:45]} 47. Rb1 {[%clk 0:00:14]}  Rc4 {[%clk 0:00:44]} 48. Rb4 {[%clk 0:00:12]}  Rgg4 {[%clk 0:00:42]} 49. Rb1 {[%clk 0:00:06]}  Ne4+ {[%clk 0:00:37]} 50. Bxe4+ {[%clk 0:00:06]}  Rgxe4 {[%clk 0:00:38]} 51. Rxe4 {[%clk 0:00:06]}  Rxe4 {[%clk 0:00:39]} 52. Ra1 {[%clk 0:00:04]}  Rc4 {[%clk 0:00:38]} 53. Ra3 {[%clk 0:00:02]}  Kb5 {[%clk 0:00:37]} 54. Ke3 {[%clk 0:00:03]}  Rg4 {[%clk 0:00:36]} 55. Kd3 {[%clk 0:00:03]}  Bxg3 {[%clk 0:00:36]} 56. c4+ {[%clk 0:00:03]}  Kb4 {[%clk 0:00:35]} 57. Ra1 {[%clk 0:00:03]}  Be5 {[%clk 0:00:35]} 58. Rb1+ {[%clk 0:00:04]}  Kc5 {[%clk 0:00:34]} 59. Rb5+ {[%clk 0:00:04]}  Kc6 {[%clk 0:00:34]} 60. Ra5 {[%clk 0:00:04]}  Rxh4 {[%clk 0:00:32]} 61. Rxa4 {[%clk 0:00:05]}  Rg4 {[%clk 0:00:32]} 62. Ra6+ {[%clk 0:00:05]}  Kd7 {[%clk 0:00:32]} 63. Ra7+ {[%clk 0:00:05]}  Ke6 {[%clk 0:00:32]} 64. Ra6+ {[%clk 0:00:06]}  Kf5 {[%clk 0:00:33]} 65. c5 {[%clk 0:00:06]}  h4 {[%clk 0:00:33]} 66. c6 {[%clk 0:00:07]}  h3 {[%clk 0:00:33]} 67. Ra5 {[%clk 0:00:07]}  h2 {[%clk 0:00:32]} 68. c7 {[%clk 0:00:07]}  h1=Q {[%clk 0:00:30]} 69. c8=Q+ {[%clk 0:00:06]}  Kg5 {[%clk 0:00:22]} 70. Qg8+ {[%clk 0:00:06]}  Kf5 {[%clk 0:00:19]} 71. Qc8+ {[%clk 0:00:06]}  Kg5 {[%clk 0:00:17]} 72. Qg8+ {[%clk 0:00:06]}  Kf5 {[%clk 0:00:17]} 73. Qc8+ {[%clk 0:00:05]} 1/2-1/2


[Site "https://www.chess.com"]

[Event "Titled Tuesday Blitz July 6 2021"]
[White "Krivonosov, Oleg"]
[Black "Dubov, Daniil"]
[WhiteFideId "11600349"]
[BlackFideId "24126055"]
[WhiteElo "2469"]
[BlackElo "2722"]
[Result "0-1"]
[Round "03"]
[TimeControl "180+1"]
[Date "2021.07.06"]
[WhiteClock "0:00:14"]
[BlackClock "0:00:11"]

1. Nf3 {[%clk 0:03:00]}  Nf6 {[%clk 0:02:59]} 2. c4 {[%clk 0:03:00]}  g6 {[%clk 0:02:58]} 3. Nc3 {[%clk 0:02:59]}  Bg7 {[%clk 0:02:59]} 4. e4 {[%clk 0:02:58]}  e5 {[%clk 0:02:59]} 5. d4 {[%clk 0:02:55]}  exd4 {[%clk 0:02:59]} 6. Nxd4 {[%clk 0:02:56]}  O-O {[%clk 0:03:00]} 7. Bd3 {[%clk 0:02:55]}  Nc6 {[%clk 0:02:57]} 8. Be3 {[%clk 0:02:53]}  d5 {[%clk 0:02:48]} 9. cxd5 {[%clk 0:02:46]}  Nxd5 {[%clk 0:02:47]} 10. exd5 {[%clk 0:02:37]}  Nxd4 {[%clk 0:02:47]} 11. O-O {[%clk 0:02:36]}  Nf5 {[%clk 0:02:39]} 12. Bxf5 {[%clk 0:02:35]}  Bxf5 {[%clk 0:02:38]} 13. Bd4 {[%clk 0:02:35]}  Qh4 {[%clk 0:02:29]} 14. Bxg7 {[%clk 0:02:33]}  Kxg7 {[%clk 0:02:30]} 15. Qd2 {[%clk 0:02:26]}  Rad8 {[%clk 0:02:27]} 16. Rad1 {[%clk 0:02:25]}  Rfe8 {[%clk 0:02:26]} 17. Rfe1 {[%clk 0:02:17]}  a6 {[%clk 0:02:23]} 18. Rxe8 {[%clk 0:02:07]}  Rxe8 {[%clk 0:02:23]} 19. h3 {[%clk 0:02:06]}  h5 {[%clk 0:02:22]} 20. Qd4+ {[%clk 0:02:04]}  Qxd4 {[%clk 0:02:21]} 21. Rxd4 {[%clk 0:02:05]}  Kf6 {[%clk 0:02:18]} 22. Rd1 {[%clk 0:01:57]}  Ke7 {[%clk 0:02:07]} 23. f3 {[%clk 0:01:31]}  h4 {[%clk 0:01:55]} 24. Re1+ {[%clk 0:01:29]}  Kd7 {[%clk 0:01:54]} 25. Rxe8 {[%clk 0:01:30]}  Kxe8 {[%clk 0:01:54]} 26. Kf2 {[%clk 0:01:29]}  Ke7 {[%clk 0:01:53]} 27. Ke3 {[%clk 0:01:29]}  f6 {[%clk 0:01:46]} 28. Kd4 {[%clk 0:01:29]}  b6 {[%clk 0:01:45]} 29. b4 {[%clk 0:01:25]}  g5 {[%clk 0:01:43]} 30. Ne4 {[%clk 0:01:17]}  Bd7 {[%clk 0:01:40]} 31. Nc3 {[%clk 0:01:15]}  Kd6 {[%clk 0:01:32]} 32. Ne4+ {[%clk 0:01:14]}  Ke7 {[%clk 0:01:32]} 33. Nc3 {[%clk 0:01:14]}  Bc8 {[%clk 0:01:19]} 34. a3 {[%clk 0:01:11]}  Bd7 {[%clk 0:01:17]} 35. Ke3 {[%clk 0:01:05]}  Kd6 {[%clk 0:01:14]} 36. Kd4 {[%clk 0:01:04]}  f5 {[%clk 0:01:13]} 37. a4 {[%clk 0:00:55]}  a5 {[%clk 0:00:43]} 38. b5 {[%clk 0:00:48]}  Be8 {[%clk 0:00:37]} 39. Nd1 {[%clk 0:00:47]}  Bg6 {[%clk 0:00:25]} 40. Ne3 {[%clk 0:00:46]}  f4 {[%clk 0:00:25]} 41. Nc4+ {[%clk 0:00:45]}  Ke7 {[%clk 0:00:25]} 42. d6+ {[%clk 0:00:43]}  Kd8 {[%clk 0:00:20]} 43. Ne5 {[%clk 0:00:37]}  Bc2 {[%clk 0:00:19]} 44. Nf7+ {[%clk 0:00:35]}  Kd7 {[%clk 0:00:18]} 45. dxc7 {[%clk 0:00:35]}  Kxc7 {[%clk 0:00:19]} 46. Nxg5 {[%clk 0:00:34]}  Bxa4 {[%clk 0:00:19]} 47. Ne6+ {[%clk 0:00:29]}  Kd6 {[%clk 0:00:19]} 48. Nxf4 {[%clk 0:00:30]}  Bxb5 {[%clk 0:00:19]} 49. Ng6 {[%clk 0:00:29]}  a4 {[%clk 0:00:13]} 50. Kc3 {[%clk 0:00:28]}  Kc5 {[%clk 0:00:12]} 51. Nxh4 {[%clk 0:00:28]}  Bc4 {[%clk 0:00:12]} 52. Nf5 {[%clk 0:00:21]}  b5 {[%clk 0:00:12]} 53. Ne3 {[%clk 0:00:20]}  b4+ {[%clk 0:00:12]} 54. Kb2 {[%clk 0:00:21]}  a3+ {[%clk 0:00:12]} 55. Ka1 {[%clk 0:00:20]}  b3 {[%clk 0:00:11]} 56. Nxc4 {[%clk 0:00:15]}  Kxc4 {[%clk 0:00:11]} 57. f4 {[%clk 0:00:15]}  Kc3 {[%clk 0:00:11]} 58. f5 {[%clk 0:00:15]}  Kc2 {[%clk 0:00:11]} 59. f6 {[%clk 0:00:14]}  b2+ {[%clk 0:00:11]} 0-1


[Site "https://www.chess.com"]

[Event "Titled Tuesday Blitz July 6 2021"]
[White "Lana Rodriguez, David"]
[Black "Svane, Rasmus"]
[WhiteFideId "2270803"]
[BlackFideId "4657101"]
[WhiteElo "2401"]
[BlackElo "2669"]
[Result "1-0"]
[Round "03"]
[TimeControl "180+1"]
[Date "2021.07.06"]
[WhiteClock "0:00:30"]
[BlackClock "0:00:02"]

1. e4 {[%clk 0:03:00]}  c6 {[%clk 0:02:59]} 2. d4 {[%clk 0:03:00]}  d5 {[%clk 0:03:00]} 3. exd5 {[%clk 0:03:00]}  cxd5 {[%clk 0:03:01]} 4. c3 {[%clk 0:02:58]}  Nc6 {[%clk 0:03:01]} 5. Nf3 {[%clk 0:02:55]}  Bg4 {[%clk 0:03:01]} 6. Bb5 {[%clk 0:02:50]}  Qc7 {[%clk 0:02:48]} 7. h3 {[%clk 0:02:48]}  Bh5 {[%clk 0:02:39]} 8. Nbd2 {[%clk 0:02:43]}  e6 {[%clk 0:02:35]} 9. Qa4 {[%clk 0:02:36]}  Bd6 {[%clk 0:02:32]} 10. O-O {[%clk 0:02:31]}  Ne7 {[%clk 0:02:31]} 11. Re1 {[%clk 0:02:29]}  O-O {[%clk 0:02:30]} 12. Be2 {[%clk 0:02:01]}  Rae8 {[%clk 0:02:28]} 13. Qd1 {[%clk 0:01:50]}  f6 {[%clk 0:02:14]} 14. Nf1 {[%clk 0:01:48]}  e5 {[%clk 0:02:01]} 15. dxe5 {[%clk 0:01:45]}  fxe5 {[%clk 0:02:02]} 16. Ne3 {[%clk 0:01:39]}  e4 {[%clk 0:01:02]} 17. Ng5 {[%clk 0:01:36]}  Bxe2 {[%clk 0:01:00]} 18. Rxe2 {[%clk 0:01:32]}  Bh2+ {[%clk 0:00:38]} 19. Kh1 {[%clk 0:01:31]}  Qd6 {[%clk 0:00:33]} 20. c4 {[%clk 0:01:27]}  d4 {[%clk 0:00:18]} 21. Ng4 {[%clk 0:01:14]}  Bf4 {[%clk 0:00:15]} 22. Nxe4 {[%clk 0:01:10]}  Qg6 {[%clk 0:00:15]} 23. Bxf4 {[%clk 0:00:50]}  Rxf4 {[%clk 0:00:16]} 24. Nc5 {[%clk 0:00:51]}  Rb8 {[%clk 0:00:11]} 25. Qd3 {[%clk 0:00:47]}  h5 {[%clk 0:00:09]} 26. Qg3 {[%clk 0:00:35]}  Rbf8 {[%clk 0:00:05]} 27. Ne6 {[%clk 0:00:31]}  hxg4 {[%clk 0:00:02]} 28. Nxf4 {[%clk 0:00:31]}  Qh5 {[%clk 0:00:02]} 29. Nxh5 {[%clk 0:00:30]} 1-0


[Site "https://www.chess.com"]

[Event "Titled Tuesday Blitz July 6 2021"]
[White "Lortkipanidze, Nodar"]
[Black "Fernandez, Michael"]
[WhiteFideId "13604058"]
[BlackFideId "5803560"]
[WhiteElo "2312"]
[BlackElo "2110"]
[Result "1/2-1/2"]
[Round "03"]
[TimeControl "180+1"]
[Date "2021.07.06"]
[WhiteClock "0:00:21"]
[BlackClock "0:00:06"]

1. e4 {[%clk 0:03:00]}  c6 {[%clk 0:02:59]} 2. d4 {[%clk 0:03:00]}  d5 {[%clk 0:02:59]} 3. exd5 {[%clk 0:03:01]}  cxd5 {[%clk 0:02:59]} 4. c4 {[%clk 0:03:01]}  Nf6 {[%clk 0:02:59]} 5. Nc3 {[%clk 0:03:01]}  Nc6 {[%clk 0:02:59]} 6. Nf3 {[%clk 0:03:01]}  Bg4 {[%clk 0:03:00]} 7. cxd5 {[%clk 0:02:58]}  Nxd5 {[%clk 0:03:00]} 8. Qb3 {[%clk 0:02:57]}  Bxf3 {[%clk 0:02:58]} 9. gxf3 {[%clk 0:02:57]}  e6 {[%clk 0:02:58]} 10. Qxb7 {[%clk 0:02:54]}  Nxd4 {[%clk 0:02:58]} 11. Bb5+ {[%clk 0:02:54]}  Nxb5 {[%clk 0:02:59]} 12. Qc6+ {[%clk 0:02:54]}  Ke7 {[%clk 0:02:59]} 13. Qxb5 {[%clk 0:02:52]}  Qd7 {[%clk 0:02:59]} 14. Nxd5+ {[%clk 0:02:53]}  exd5 {[%clk 0:02:59]} 15. Qd3 {[%clk 0:02:35]}  f6 {[%clk 0:02:50]} 16. O-O {[%clk 0:02:30]}  Kf7 {[%clk 0:02:45]} 17. Bf4 {[%clk 0:02:26]}  Bc5 {[%clk 0:02:39]} 18. Rfd1 {[%clk 0:02:19]}  Rad8 {[%clk 0:02:36]} 19. Rac1 {[%clk 0:02:05]}  Bb6 {[%clk 0:02:30]} 20. b4 {[%clk 0:02:02]}  h6 {[%clk 0:02:23]} 21. b5 {[%clk 0:01:59]}  Rhe8 {[%clk 0:02:21]} 22. a4 {[%clk 0:01:56]}  Rc8 {[%clk 0:01:56]} 23. Rxc8 {[%clk 0:01:35]}  Rxc8 {[%clk 0:01:53]} 24. Qb3 {[%clk 0:01:29]}  Kg8 {[%clk 0:01:15]} 25. Rxd5 {[%clk 0:01:19]}  Qf7 {[%clk 0:01:14]} 26. Qd3 {[%clk 0:01:18]}  Re8 {[%clk 0:00:52]} 27. Bd2 {[%clk 0:01:10]}  Qe6 {[%clk 0:00:40]} 28. a5 {[%clk 0:01:06]}  Bc7 {[%clk 0:00:29]} 29. Rd7 {[%clk 0:01:05]}  Be5 {[%clk 0:00:21]} 30. Be3 {[%clk 0:01:02]}  Qh3 {[%clk 0:00:18]} 31. f4 {[%clk 0:00:34]}  Bxf4 {[%clk 0:00:17]} 32. Qg6 {[%clk 0:00:20]}  Bxh2+ {[%clk 0:00:15]} 33. Kh1 {[%clk 0:00:20]}  Bg3+ {[%clk 0:00:04]} 34. Kg1 {[%clk 0:00:20]}  Bh2+ {[%clk 0:00:05]} 35. Kh1 {[%clk 0:00:20]}  Bg3+ {[%clk 0:00:06]} 36. Kg1 {[%clk 0:00:21]}  Bh2+ {[%clk 0:00:06]} 1/2-1/2


[Site "https://www.chess.com"]

[Event "Titled Tuesday Blitz July 6 2021"]
[White "Makhnev, Denis"]
[Black "Zubov, Alexander"]
[WhiteFideId "13707647"]
[BlackFideId "14109409"]
[WhiteElo "2537"]
[BlackElo "2740"]
[Result "0-1"]
[Round "03"]
[TimeControl "180+1"]
[Date "2021.07.06"]
[WhiteClock "0:00:17"]
[BlackClock "0:00:46"]

1. Nf3 {[%clk 0:03:00]}  Nf6 {[%clk 0:02:57]} 2. c4 {[%clk 0:03:00]}  g6 {[%clk 0:02:57]} 3. Nc3 {[%clk 0:02:59]}  d5 {[%clk 0:02:57]} 4. cxd5 {[%clk 0:02:58]}  Nxd5 {[%clk 0:02:58]} 5. Qa4+ {[%clk 0:02:58]}  Nc6 {[%clk 0:02:57]} 6. Ne5 {[%clk 0:02:57]}  Qd6 {[%clk 0:02:57]} 7. Nxc6 {[%clk 0:02:56]}  Qxc6 {[%clk 0:02:57]} 8. Qxc6+ {[%clk 0:02:55]}  bxc6 {[%clk 0:02:58]} 9. g3 {[%clk 0:02:55]}  Bg7 {[%clk 0:02:49]} 10. Bg2 {[%clk 0:02:54]}  Be6 {[%clk 0:02:49]} 11. O-O {[%clk 0:02:53]}  O-O-O {[%clk 0:02:47]} 12. Nxd5 {[%clk 0:02:20]}  Bxd5 {[%clk 0:02:30]} 13. d3 {[%clk 0:02:19]}  h5 {[%clk 0:02:11]} 14. Be3 {[%clk 0:01:52]}  a5 {[%clk 0:02:05]} 15. Bxd5 {[%clk 0:01:42]}  cxd5 {[%clk 0:02:05]} 16. Rab1 {[%clk 0:01:40]}  a4 {[%clk 0:01:53]} 17. Rfc1 {[%clk 0:01:38]}  Kd7 {[%clk 0:01:49]} 18. Bc5 {[%clk 0:01:16]}  Rb8 {[%clk 0:01:44]} 19. d4 {[%clk 0:01:16]}  e5 {[%clk 0:01:41]} 20. dxe5 {[%clk 0:01:14]}  Bxe5 {[%clk 0:01:41]} 21. b3 {[%clk 0:01:13]}  axb3 {[%clk 0:01:30]} 22. axb3 {[%clk 0:01:13]}  Rb5 {[%clk 0:01:29]} 23. b4 {[%clk 0:01:10]}  Rhb8 {[%clk 0:01:28]} 24. Rd1 {[%clk 0:01:03]}  Ke6 {[%clk 0:01:28]} 25. Rbc1 {[%clk 0:01:00]}  f5 {[%clk 0:01:26]} 26. f3 {[%clk 0:00:58]}  c6 {[%clk 0:01:16]} 27. Kg2 {[%clk 0:00:44]}  Bd6 {[%clk 0:01:14]} 28. Bxd6 {[%clk 0:00:31]}  Kxd6 {[%clk 0:01:13]} 29. e4 {[%clk 0:00:30]}  Rxb4 {[%clk 0:01:11]} 30. exd5 {[%clk 0:00:30]}  cxd5 {[%clk 0:01:10]} 31. Rd2 {[%clk 0:00:28]}  Rb2 {[%clk 0:01:10]} 32. Rd1 {[%clk 0:00:28]}  d4 {[%clk 0:01:07]} 33. g4 {[%clk 0:00:20]}  Ke5 {[%clk 0:00:58]} 34. gxh5 {[%clk 0:00:20]}  gxh5 {[%clk 0:00:58]} 35. Kg3 {[%clk 0:00:19]}  Rxd2 {[%clk 0:00:56]} 36. Rxd2 {[%clk 0:00:20]}  Rb3 {[%clk 0:00:55]} 37. Re2+ {[%clk 0:00:19]}  Re3 {[%clk 0:00:51]} 38. Ra2 {[%clk 0:00:17]}  f4+ {[%clk 0:00:51]} 39. Kf2 {[%clk 0:00:17]}  d3 {[%clk 0:00:45]} 40. Ra5+ {[%clk 0:00:17]}  Kd4 {[%clk 0:00:45]} 41. Ra4+ {[%clk 0:00:17]}  Kc3 {[%clk 0:00:46]} 42. Rxf4 {[%clk 0:00:17]}  Re2+ {[%clk 0:00:46]} 0-1


[Site "https://www.chess.com"]